bitfinex-derivatives/quotes_BTCF0:USTF0_20250903
["timestamp","ask_amount","ask_price","bid_price","bid_amount"]
[1756902321314,0.36266035,111630.0,111620.0,0.81807035]
[1756902322512,0.36266035,111630.0,111620.0,0.47988]
[1756902322713,0.36266035,111630.0,111620.0,0.81807035]
[1756902322918,0.36266035,111630.0,111620.0,0.80807035]
[1756902323214,0.36266035,111630.0,111620.0,0.46988]
[1756902326524,0.02447,111630.0,111620.0,0.46988]
[1756902326725,0.36266035,111630.0,111620.0,0.46988]
[1756902328316,0.72505507,111630.0,111620.0,0.38908]
[1756902328519,0.38686472,111630.0,111620.0,0.38908]
[1756902328824,0.73306507,111630.0,111620.0,0.38908]
[1756902329726,0.38686472,111630.0,111620.0,0.38908]
[1756902330726,0.38686472,111630.0,111620.0,0.74988]
[1756902332728,0.72686472,111630.0,111620.0,0.46988]
[1756902332923,1.55314472,111630.0,111620.0,0.46988]
[1756902338531,1.52894035,111630.0,111620.0,0.46988]
[1756902338733,1.18894035,111630.0,111620.0,0.46988]
[1756902339740,1.18894035,111630.0,111620.0,0.46798]
[1756902342336,1.21314265,111630.0,111620.0,0.46798]
[1756902344239,0.8745923,111630.0,111620.0,0.46798]
[1756902344428,1.21278265,111630.0,111620.0,0.46798]
[1756902344629,0.38686265,111630.0,111620.0,0.46798]
[1756902344937,1.21274265,111630.0,111620.0,0.46798]
[1756902346244,1.21274265,111630.0,111620.0,0.47798]
[1756902348444,0.8745523,111630.0,111620.0,0.47798]
[1756902348639,1.21274265,111630.0,111620.0,0.47798]
[1756902358853,1.21278236,111630.0,111620.0,0.47798]
[1756902362354,0.38690236,111630.0,111620.0,0.47798]
[1756902362556,1.21214236,111630.0,111620.0,0.81617035]
[1756902362752,0.87395201,111630.0,111620.0,0.47798]
[1756902362951,1.21214236,111630.0,111620.0,0.47798]
[1756902363457,0.87395201,111630.0,111620.0,0.47798]
[1756902363656,1.21214236,111630.0,111620.0,0.47798]
[1756902364457,1.21214236,111630.0,111620.0,0.81617035]
[1756902365659,1.32484031,111630.0,111620.0,0.47798]
[1756902366761,0.87395201,111630.0,111620.0,0.47798]
[1756902366964,1.32484031,111630.0,111620.0,0.47798]
[1756902369362,0.04871201,111630.0,111620.0,0.47798]
[1756902369563,1.32464031,111630.0,111620.0,0.47798]
[1756902371562,1.32463806,111630.0,111620.0,0.47798]
[1756902378564,1.32427806,111630.0,111620.0,0.47798]
[1756902378769,0.04870976,111630.0,111620.0,0.75798]
[1756902378961,0.84915,111630.0,111620.0,1.2088683]
[1756902379166,0.84915,111630.0,111620.0,0.47798]
[1756902379470,0.87338931,111630.0,111620.0,0.47798]
[1756902380071,0.87338931,111630.0,111620.0,0.72798]
[1756902380272,0.87338931,111630.0,111620.0,0.47798]
[1756902381172,1.32427761,111630.0,111620.0,0.47798]
[1756902382774,1.32429294,111630.0,111620.0,0.47798]
[1756902383968,1.32429294,111630.0,111620.0,0.39798]
[1756902384174,1.32429294,111630.0,111620.0,0.46798]
[1756902388879,0.87340464,111630.0,111620.0,0.46798]
[1756902389176,1.32429294,111630.0,111620.0,0.46798]
[1756902392080,1.33282294,111630.0,111620.0,0.46798]
[1756902395084,1.32429294,111630.0,111620.0,0.46798]
[1756902395877,1.33282294,111630.0,111620.0,0.47798]
[1756902396077,1.33282294,111630.0,111620.0,0.4408]
[1756902396282,1.67282294,111630.0,111620.0,0.4408]
[1756902397082,1.68164782,111630.0,111620.0,0.4408]
[1756902403684,1.67282294,111630.0,111620.0,0.46437]
[1756902405691,1.68194115,111630.0,111620.0,0.46437]
[1756902406180,1.68194115,111630.0,111620.0,0.38437]
[1756902406384,1.68194115,111630.0,111620.0,0.45437]
[1756902407693,1.67282294,111630.0,111620.0,0.45437]
[1756902407893,1.67182294,111630.0,111620.0,0.45437]
[1756902412292,2.03262294,111630.0,111620.0,0.37]
[1756902412495,0.02969,111620.0,111600.0,0.39611388]
[1756902412800,0.02969,111620.0,111600.0,0.39879]
[1756902412801,1.2971583,111610.0,111600.0,0.39879]
[1756902412983,1.69833443,111610.0,111600.0,0.39879]
[1756902413294,1.63831835,111610.0,111600.0,0.38437]
[1756902413493,1.63831835,111610.0,111600.0,0.38885]
[1756902413688,1.63831835,111610.0,111600.0,0.39085]
[1756902413895,1.17567835,111610.0,111600.0,0.00648]
[1756902414192,1.99907835,111610.0,111600.0,0.03005]
[1756902414595,1.99907835,111610.0,111600.0,0.03205]
[1756902415291,1.54819005,111610.0,111600.0,0.03205]
[1756902415493,1.54819005,111610.0,111600.0,0.00648]
[1756902415691,2.00821361,111610.0,111600.0,0.00648]
[1756902415891,2.00821361,111610.0,111600.0,0.03005]
[1756902416394,2.00921361,111610.0,111600.0,0.02805]
[1756902417089,2.00821361,111610.0,111600.0,0.02805]
[1756902417295,2.01121361,111610.0,111600.0,0.02805]
[1756902417682,2.01421361,111610.0,111600.0,0.02805]
[1756902418091,1.55419005,111610.0,111600.0,0.02805]
[1756902418296,2.00507835,111610.0,111600.0,0.02805]
[1756902418797,1.18167835,111610.0,111600.0,0.02805]
[1756902418994,2.00507835,111610.0,111600.0,0.02805]
[1756902419495,1.18167835,111610.0,111600.0,0.02805]
[1756902419696,2.00507835,111610.0,111600.0,0.02805]
[1756902420997,1.18167835,111610.0,111600.0,0.02805]
[1756902421197,2.00507835,111610.0,111600.0,0.02805]
[1756902422199,1.9808183,111610.0,111600.0,0.02805]
[1756902422698,1.9808183,111610.0,111600.0,0.00448]
[1756902422893,2.00502112,111610.0,111600.0,0.00448]
[1756902423196,1.9808183,111610.0,111600.0,0.00448]
[1756902423800,1.52993,111610.0,111600.0,0.00448]
[1756902423998,2.00501855,111610.0,111600.0,0.00448]
[1756902425498,1.9808183,111610.0,111600.0,0.00448]
[1756902425698,2.00501239,111610.0,111600.0,0.00448]
[1756902426201,1.9808183,111610.0,111600.0,0.00448]
[1756902427598,2.20669822,111610.0,111600.0,0.00448]
[1756902427899,2.20669822,111610.0,111600.0,0.02805]
[1756902428703,2.20669822,111610.0,111600.0,0.00448]
[1756902429797,2.2308894,111610.0,111600.0,0.00448]
[1756902432802,2.4808894,111610.0,111600.0,0.00448]
[1756902436306,1.6574894,111610.0,111600.0,0.00448]
[1756902436605,2.4807294,111610.0,111600.0,0.0284]
[1756902437304,2.4807294,111610.0,111600.0,0.00448]
[1756902437700,1.6574894,111610.0,111600.0,0.00448]
[1756902437906,2.4806894,111610.0,111600.0,0.00448]
[1756902438105,1.6574894,111610.0,111600.0,0.00448]
[1756902438304,2.4806894,111610.0,111600.0,0.00448]
[1756902438904,2.4806894,111610.0,111600.0,0.0284]
[1756902439198,0.98072118,111610.0,111600.0,0.00448]
[1756902439393,2.4806894,111610.0,111600.0,0.00448]
[1756902439999,2.4806894,111610.0,111600.0,0.0284]
[1756902440199,2.4806894,111610.0,111600.0,0.00448]
[1756902442609,1.80392118,111610.0,111600.0,0.00448]
[1756902442909,2.4806894,111610.0,111600.0,0.00448]
[1756902443408,1.80384118,111610.0,111600.0,0.0284]
[1756902443706,2.4806094,111610.0,111600.0,0.00448]
[1756902443896,2.4806094,111610.0,111600.0,0.0284]
[1756902444503,2.4806094,111610.0,111600.0,0.00448]
[1756902445605,2.4806094,111610.0,111600.0,0.0284]
[1756902445806,1.80384118,111610.0,111600.0,0.04314]
[1756902446510,2.4806094,111610.0,111600.0,0.04314]
[1756902446811,1.80380118,111610.0,111600.0,0.04314]
[1756902447008,2.52895325,111610.0,111600.0,0.04314]
[1756902447610,1.45587325,111610.0,111600.0,0.04314]
[1756902447906,0.70140529,111610.0,111600.0,0.73394]
[1756902448112,0.70140529,111610.0,111600.0,1.65070822]
[1756902448113,0.87610118,111610.0,111600.0,1.65070822]
[1756902448311,0.03019118,111610.0,111600.0,1.66070822]
[1756902448808,0.006,111610.0,111600.0,1.66070822]
[1756902449410,1.18538411,111620.0,111610.0,0.01474]
[1756902449611,1.3694901,111620.0,111610.0,0.81784411]
[1756902449910,1.3694501,111620.0,111610.0,0.81784411]
[1756902450113,1.3694501,111620.0,111610.0,0.47946]
[1756902450507,1.3694501,111620.0,111610.0,0.81784411]
[1756902450811,1.3694501,111620.0,111610.0,0.82231411]
[1756902451306,1.3694501,111620.0,111610.0,1.07231411]
[1756902451307,0.18382,111620.0,111610.0,1.07231411]
[1756902451504,1.18520411,111620.0,111610.0,1.07231411]
[1756902452009,0.84682,111620.0,111610.0,1.07331411]
[1756902452208,1.18520411,111620.0,111610.0,1.07331411]
[1756902452509,0.84682,111620.0,111610.0,1.07331411]
[1756902452710,1.18520411,111620.0,111610.0,1.07331411]
[1756902454710,0.84682,111620.0,111610.0,1.07331411]
[1756902455013,1.18520411,111620.0,111610.0,1.07331411]
[1756902455212,1.18520411,111620.0,111610.0,0.73493]
[1756902455403,1.18520411,111620.0,111610.0,1.07331411]
[1756902455802,0.84682,111620.0,111610.0,1.07331411]
[1756902456103,1.18520411,111620.0,111610.0,1.07331411]
[1756902456301,1.52358822,111620.0,111610.0,0.73493]
[1756902457810,1.53048822,111620.0,111610.0,0.09939]
[1756902458015,1.87148822,111620.0,111610.0,0.09839]
[1756902458716,1.87248822,111620.0,111610.0,0.09839]
[1756902461917,0.36420411,111620.0,111610.0,0.04258]
[1756902462216,1.18692411,111620.0,111610.0,0.81176411]
[1756902462416,1.52530822,111620.0,111610.0,0.47338]
[1756902462812,1.18692411,111620.0,111610.0,0.47338]
[1756902463317,1.52530822,111620.0,111610.0,0.47338]
[1756902465232,0.02582,111620.0,111610.0,0.81176411]
[1756902465523,1.18688411,111620.0,111610.0,0.81176411]
[1756902466223,0.8485,111620.0,111610.0,0.81176411]
[1756902466522,1.18688411,111620.0,111610.0,0.81176411]
[1756902467828,0.8485,111620.0,111610.0,0.47338]
[1756902468027,1.18688411,111620.0,111610.0,0.81176411]
[1756902469925,1.18688411,111620.0,111610.0,0.47338]
[1756902470225,0.85703,111620.0,111610.0,0.47338]
[1756902470527,1.52526822,111620.0,111610.0,0.47338]
[1756902473716,1.53379822,111620.0,111610.0,0.00447]
[1756902473920,2.13800245,111620.0,111610.0,0.00447]
[1756902474413,2.49880245,111620.0,111610.0,0.00447]
[1756902475519,2.83718656,111620.0,111610.0,0.00447]
[1756902475719,2.83718656,111620.0,111590.0,0.39893]
[1756902475720,0.01259,111600.0,111590.0,0.39893]
[1756902475921,1.83187822,111600.0,111590.0,0.39893]
[1756902477029,1.83187822,111600.0,111590.0,0.40093]
[1756902477327,1.85610169,111600.0,111590.0,0.40193]
[1756902479131,1.83187822,111600.0,111590.0,0.40193]
[1756902479430,1.83187822,111600.0,111590.0,0.04113]
[1756902479630,1.17932308,111600.0,111590.0,0.04113]
[1756902479826,1.8560913,111600.0,111590.0,0.04113]
[1756902480026,1.8560913,111600.0,111590.0,0.003]
[1756902480435,1.8560913,111600.0,111590.0,0.04058]
[1756902487433,1.63054266,111600.0,111590.0,0.04058]
[1756902488833,1.63054266,111600.0,111590.0,0.03958]
[1756902489029,1.63154266,111600.0,111590.0,0.03958]
[1756902489333,1.63150266,111600.0,111590.0,0.03958]
[1756902489533,1.64571266,111600.0,111580.0,0.36780392]
[1756902489734,0.49032958,111590.0,111580.0,0.47037392]
[1756902490729,0.49032958,111590.0,111580.0,0.47137392]
[1756902491332,0.49032958,111590.0,111580.0,0.48025322]
[1756902492930,0.49032958,111590.0,111580.0,0.49411322]
[1756902493325,0.49032958,111590.0,111580.0,0.001]
[1756902493526,1.16112958,111590.0,111580.0,0.001]
[1756902494528,1.18531965,111590.0,111580.0,0.001]
[1756902498438,1.43531965,111590.0,111580.0,0.001]
[1756902500741,1.43531965,111590.0,111580.0,0.02357]
[1756902501542,1.43531965,111590.0,111580.0,0.001]
[1756902503640,2.25771965,111590.0,111580.0,0.001]
[1756902504543,2.25771965,111590.0,111580.0,0.02357]
[1756902505333,2.25771965,111590.0,111580.0,0.001]
[1756902507343,1.43531965,111590.0,111580.0,0.001]
[1756902507543,2.25771965,111590.0,111580.0,0.001]
[1756902508646,2.25771965,111590.0,111580.0,0.081]
[1756902509545,2.25767965,111590.0,111580.0,0.081]
[1756902509843,1.43531965,111590.0,111580.0,0.081]
[1756902510046,1.43531965,111590.0,111580.0,0.10357]
[1756902510047,2.25763965,111590.0,111580.0,0.10357]
[1756902510548,1.43531965,111590.0,111580.0,0.10357]
[1756902510747,2.25763965,111590.0,111580.0,0.10357]
[1756902511450,1.43531965,111590.0,111580.0,0.10357]
[1756902511645,2.25763965,111590.0,111580.0,0.10357]
[1756902511847,1.43531965,111590.0,111580.0,0.10357]
[1756902512146,2.25763965,111590.0,111580.0,0.10357]
[1756902512347,1.43531965,111590.0,111580.0,0.10357]
[1756902512548,2.25763965,111590.0,111580.0,0.10357]
[1756902513750,2.00759965,111590.0,111580.0,0.11743]
[1756902514346,1.55638007,111590.0,111580.0,0.11743]
[1756902514547,2.00759965,111590.0,111580.0,0.11743]
[1756902516948,2.02759965,111590.0,111580.0,0.10357]
[1756902517348,2.0276402,111590.0,111580.0,0.10357]
[1756902520945,1.2053602,111590.0,111580.0,0.10357]
[1756902521151,2.0275602,111590.0,111580.0,0.10357]
[1756902521951,2.0275202,111590.0,111580.0,0.10357]
[1756902523154,1.2053602,111590.0,111580.0,0.10357]
[1756902523355,2.0275202,111590.0,111580.0,0.10357]
[1756902524750,2.00328958,111590.0,111580.0,0.10357]
[1756902524950,2.02755836,111590.0,111580.0,0.10357]
[1756902526154,2.02755836,111590.0,111580.0,0.081]
[1756902526458,2.02755836,111590.0,111580.0,0.10427]
[1756902528358,2.02755836,111590.0,111580.0,0.081]
[1756902529361,2.02755836,111590.0,111580.0,0.10427]
[1756902529951,2.02755836,111590.0,111580.0,0.081]
[1756902544064,2.02755836,111590.0,111580.0,0.10427]
[1756902549567,2.25332298,111590.0,111580.0,0.10427]
[1756902552664,1.92332298,111590.0,111580.0,0.10427]
[1756902554665,2.28332298,111590.0,111580.0,0.10427]
[1756902555668,2.28332298,111590.0,111580.0,0.081]
[1756902557972,2.28332298,111590.0,111580.0,0.10415]
[1756902560372,2.28332647,111590.0,111580.0,0.10415]
[1756902561873,2.28332647,111590.0,111580.0,0.081]
[1756902563073,2.28332647,111590.0,111580.0,0.08]
[1756902563273,0.01462,111580.0,111560.0,0.38381674]
[1756902563573,1.1983621,111570.0,111560.0,0.09315]
[1756902563774,1.23414227,111570.0,111560.0,0.09315]
[1756902563973,1.57263437,111570.0,111560.0,0.09315]
[1756902564680,1.57263437,111570.0,111560.0,0.1664622]
[1756902565277,1.57263437,111570.0,111560.0,0.1644622]
[1756902566371,0.75115437,111570.0,111560.0,0.1634622]
[1756902566575,1.57255437,111570.0,111560.0,0.1644622]
[1756902567076,1.57255437,111570.0,111560.0,0.18100226]
[1756902568380,1.57255437,111570.0,111560.0,0.1644622]
[1756902568974,0.75115437,111570.0,111560.0,0.1644622]
[1756902569180,0.75115437,111570.0,111560.0,0.18062855]
[1756902569483,1.57247437,111570.0,111560.0,0.18062855]
[1756902569881,1.5482021,111570.0,111560.0,0.18062855]
[1756902570978,0.7268821,111570.0,111560.0,0.18062855]
[1756902571182,1.57277682,111570.0,111560.0,0.18062855]
[1756902573479,1.57277682,111570.0,111560.0,0.11031635]
[1756902575981,1.57277682,111570.0,111560.0,0.09415]
[1756902579782,0.75145682,111570.0,111560.0,0.09415]
[1756902579977,1.57261682,111570.0,111560.0,0.09415]
[1756902580472,1.57261682,111570.0,111560.0,0.11017116]
[1756902580672,0.75145682,111570.0,111560.0,0.44866326]
[1756902580880,1.57257682,111570.0,111560.0,0.44866326]
[1756902585688,0.75145682,111570.0,111560.0,0.44866326]
[1756902585890,1.57245682,111570.0,111560.0,0.44866326]
[1756902586180,1.57245682,111570.0,111560.0,0.46240326]
[1756902586384,0.88392472,111570.0,111560.0,0.82320326]
[1756902586581,0.04834472,111570.0,111560.0,1.71169536]
[1756902586783,0.02377,111570.0,111560.0,1.71169536]
[1756902597393,0.02434,111580.0,111570.0,0.03674]
[1756902597696,0.02424,111580.0,111570.0,0.9360321]
[1756902598894,0.02524,111580.0,111570.0,0.9360321]
[1756902601390,0.02524,111580.0,111570.0,0.59754]
[1756902601391,0.3637321,111580.0,111570.0,0.59754]
[1756902601597,0.3784221,111580.0,111570.0,0.59754]
[1756902601894,0.3784221,111580.0,111570.0,0.9360321]
[1756902603891,0.3784221,111580.0,111570.0,0.59754]
[1756902604097,0.3784221,111580.0,111570.0,0.9360321]
[1756902604295,0.7169142,111580.0,111570.0,0.59754]
[1756902605894,0.3784221,111580.0,111570.0,0.9360321]
[1756902607500,0.3637321,111580.0,111570.0,0.9360321]
[1756902609503,0.47655796,111580.0,111570.0,0.59754]
[1756902610104,0.50118124,111580.0,111570.0,0.59754]
[1756902613205,0.04986328,111580.0,111570.0,0.59754]
[1756902613399,0.50118124,111580.0,111570.0,0.59754]
[1756902615707,1.12582124,111580.0,111570.0,0.403]
[1756902616807,0.67450328,111580.0,111570.0,0.403]
[1756902617003,1.12582124,111580.0,111570.0,0.403]
[1756902619207,1.50582124,111580.0,111570.0,0.403]
[1756902619409,1.12582124,111580.0,111570.0,0.403]
[1756902621920,1.50582124,111580.0,111570.0,0.403]
[1756902628223,1.25582124,111580.0,111570.0,0.403]
[1756902628522,0.87582124,111580.0,111570.0,0.403]
[1756902630920,1.25582124,111580.0,111550.0,0.44607558]
[1756902631116,0.85683,111570.0,111560.0,0.02267]
[1756902631318,1.33277124,111570.0,111560.0,0.02267]
[1756902631517,1.33277124,111570.0,111560.0,0.10267]
[1756902631719,0.88145328,111570.0,111560.0,0.10267]
[1756902631918,1.33277124,111570.0,111560.0,0.10267]
[1756902633025,1.33277124,111570.0,111560.0,0.10367]
[1756902634129,1.69357124,111570.0,111560.0,0.10367]
[1756902634625,2.07357124,111570.0,111560.0,0.10367]
[1756902637023,2.10247713,111570.0,111560.0,0.081]
[1756902637826,1.72247713,111570.0,111560.0,0.081]
[1756902638026,2.10247713,111570.0,111560.0,0.001]
[1756902638227,2.35247713,111570.0,111560.0,0.071]
[1756902638824,2.35247713,111570.0,111560.0,0.001]
[1756902639027,0.03761,111560.0,111550.0,0.02351]
[1756902639224,1.21435124,111560.0,111550.0,0.02351]
[1756902640724,2.03411124,111560.0,111550.0,0.02351]
[1756902641633,1.21435124,111560.0,111550.0,0.02351]
[1756902641929,2.03511124,111560.0,111550.0,0.02351]
[1756902643933,1.69511124,111560.0,111550.0,0.02351]
[1756902644332,0.01397,111550.0,111540.0,0.47031784]
[1756902644535,0.48892796,111550.0,111540.0,0.55031784]
[1756902645428,0.48892796,111550.0,111540.0,0.46431]
[1756902645630,0.03661,111540.0,111530.0,0.38431]
[1756902645930,1.30760796,111540.0,111530.0,0.38431]
[1756902646125,1.30760796,111540.0,111530.0,0.02351]
[1756902648035,0.48792796,111540.0,111530.0,0.02551]
[1756902648236,1.30756796,111540.0,111530.0,0.02551]
[1756902648629,1.67756796,111540.0,111530.0,0.02751]
[1756902648828,1.21872796,111540.0,111530.0,0.004]
[1756902649037,2.03836796,111540.0,111530.0,0.004]
[1756902650038,2.06298392,111540.0,111530.0,0.004]
[1756902650733,1.24334392,111540.0,111530.0,0.004]
[1756902650937,2.06298392,111540.0,111530.0,0.004]
[1756902652140,1.61166596,111540.0,111530.0,0.004]
[1756902652340,2.06298392,111540.0,111530.0,0.004]
[1756902654146,2.06298392,111540.0,111530.0,0.02751]
[1756902655341,2.06298392,111540.0,111530.0,0.004]
[1756902656837,2.06294392,111540.0,111530.0,0.004]
[1756902659433,1.24334392,111540.0,111530.0,0.004]
[1756902659638,2.06294392,111540.0,111530.0,0.004]
[1756902661647,1.24334392,111540.0,111530.0,0.004]
[1756902661843,2.06290392,111540.0,111530.0,0.004]
[1756902663142,1.24334392,111540.0,111530.0,0.02751]
[1756902663445,2.06286392,111540.0,111530.0,0.004]
[1756902663847,1.24334392,111540.0,111530.0,0.004]
[1756902664041,2.06286392,111540.0,111530.0,0.02751]
[1756902668941,2.06286392,111540.0,111530.0,0.004]
[1756902670358,1.61154596,111540.0,111530.0,0.004]
[1756902670550,2.06286392,111540.0,111530.0,0.004]
[1756902670949,1.61154596,111540.0,111530.0,0.004]
[1756902671244,2.06286392,111540.0,111530.0,0.004]
[1756902671449,2.28919246,111540.0,111530.0,0.004]
[1756902675864,2.33757631,111540.0,111530.0,0.004]
[1756902677354,2.28919246,111540.0,111530.0,0.004]
[1756902678561,2.69254828,111540.0,111530.0,0.004]
[1756902679963,2.67637231,111540.0,111530.0,0.004]
[1756902680461,2.33754906,111540.0,111530.0,0.004]
[1756902681361,2.33754906,111540.0,111530.0,0.02801]
[1756902681561,2.33754906,111540.0,111530.0,0.004]
[1756902682162,2.67637231,111540.0,111530.0,0.004]
[1756902682559,2.33754906,111540.0,111530.0,0.004]
[1756902683060,2.67637231,111540.0,111530.0,0.004]
[1756902683664,0.03891,111520.0,111510.0,0.02401]
[1756902683857,2.29113246,111520.0,111510.0,0.02401]
[1756902685166,2.29113246,111520.0,111510.0,0.02501]
[1756902685866,2.62995571,111520.0,111510.0,0.001]
[1756902686357,2.62995571,111520.0,111510.0,0.002]
[1756902686857,2.6553295,111520.0,111510.0,0.002]
[1756902687455,2.7036861,111520.0,111510.0,0.002]
[1756902689253,2.6553295,111520.0,111510.0,0.002]
[1756902690964,1.8361695,111520.0,111510.0,0.002]
[1756902691357,1.23828596,111520.0,111510.0,0.62981325]
[1756902691557,1.20710921,111520.0,111510.0,0.62981325]
[1756902691765,1.20710921,111520.0,111510.0,1.07061325]
[1756902692452,1.20710921,111520.0,111510.0,0.73179]
[1756902692658,1.20710921,111520.0,111510.0,1.07061325]
[1756902692959,0.02461596,111520.0,111510.0,1.30061325]
[1756902693160,1.8949,111530.0,111510.0,1.30061325]
[1756902693466,2.29406661,111530.0,111520.0,0.37781325]
[1756902693653,1.21832661,111530.0,111520.0,0.54781325]
[1756902694066,1.55714986,111530.0,111520.0,0.54781325]
[1756902695265,1.55814986,111530.0,111520.0,0.54781325]
[1756902695458,1.55814986,111530.0,111520.0,0.20899]
[1756902695657,1.55814986,111530.0,111520.0,0.10899]
[1756902695865,0.73898986,111530.0,111520.0,0.10899]
[1756902696066,1.55810986,111530.0,111520.0,0.10899]
[1756902696459,1.55810986,111530.0,111520.0,1.05861325]
[1756902696757,0.48898986,111530.0,111520.0,1.05861325]
[1756902696959,1.30810986,111530.0,111520.0,1.05861325]
[1756902698068,0.96928661,111530.0,111520.0,1.05861325]
[1756902698367,1.30810986,111530.0,111520.0,1.05861325]
[1756902699070,0.48898986,111530.0,111520.0,1.05861325]
[1756902699270,1.30806986,111530.0,111520.0,1.05861325]
[1756902699467,1.20806986,111530.0,111520.0,0.64979]
[1756902699664,1.27063986,111530.0,111520.0,0.72979]
[1756902699864,1.27063986,111530.0,111520.0,0.47979]
[1756902700067,1.27063986,111530.0,111520.0,0.46481]
[1756902700776,0.93181661,111530.0,111520.0,0.46481]
[1756902700977,1.27063986,111530.0,111520.0,0.46481]
[1756902702678,1.57063986,111530.0,111520.0,0.46481]
[1756902704083,1.26063986,111530.0,111520.0,0.46481]
[1756902704481,0.92181661,111530.0,111520.0,0.46481]
[1756902704680,1.26063986,111530.0,111520.0,0.46481]
[1756902707482,1.54063986,111530.0,111520.0,0.46481]
[1756902707683,1.20181661,111530.0,111520.0,0.10401]
[1756902708088,1.54063986,111530.0,111520.0,0.10401]
[1756902709390,1.20181661,111530.0,111520.0,0.11838]
[1756902709687,1.52806986,111530.0,111520.0,0.45720325]
[1756902709891,1.27806986,111530.0,111520.0,0.45720325]
[1756902710778,0.12016661,111530.0,111520.0,1.3268265]
[1756902711083,0.79388,111530.0,111520.0,1.3268265]
[1756902711282,0.79388,111530.0,111520.0,1.6668265]
[1756902712291,0.79388,111530.0,111520.0,1.4068265]
[1756902712589,0.79388,111530.0,111520.0,1.6668265]
[1756902712785,0.0001,111540.0,111530.0,0.01437]
[1756902712986,0.43177107,111550.0,111540.0,0.01437]
[1756902712987,0.84202,111550.0,111540.0,0.01437]
[1756902713183,1.23657689,111550.0,111540.0,1.19250673]
[1756902713785,1.57540014,111550.0,111540.0,0.51486023]
[1756902713986,1.57540014,111550.0,111540.0,1.10368348]
[1756902714292,1.55274325,111550.0,111540.0,1.10368348]
[1756902714679,1.21392,111550.0,111540.0,1.10368348]
[1756902714887,0.73386325,111550.0,111540.0,1.10368348]
[1756902715086,1.57734362,111550.0,111540.0,1.10368348]
[1756902715287,1.55270325,111550.0,111540.0,1.10368348]
[1756902716392,1.55170325,111550.0,111540.0,1.10368348]
[1756902716796,1.62268142,111550.0,111540.0,1.10368348]
[1756902716996,1.62264142,111550.0,111540.0,1.10368348]
[1756902717397,1.62264142,111550.0,111540.0,0.51486023]
[1756902717595,1.62264142,111550.0,111540.0,0.85368348]
[1756902718096,1.28381817,111550.0,111540.0,0.85368348]
[1756902718497,1.64727209,111550.0,111540.0,0.85368348]
[1756902718991,0.48964884,111550.0,111540.0,0.85368348]
[1756902719197,0.001,111550.0,111540.0,1.12250673]
[1756902719399,0.001,111550.0,111540.0,1.32250673]
[1756902720200,0.001,111550.0,111540.0,2.48085623]
[1756902720600,0.0001,111560.0,111550.0,0.01437]
[1756902720900,1.18068325,111570.0,111560.0,0.03834]
[1756902721101,1.18068325,111570.0,111560.0,0.91796325]
[1756902721102,1.53522203,111570.0,111560.0,0.91796325]
[1756902721398,1.51058325,111570.0,111560.0,0.91796325]
[1756902721899,1.17176,111570.0,111560.0,1.2577865]
[1756902722099,0.33,111570.0,111560.0,1.6577865]
[1756902722302,0.02314,111580.0,111570.0,0.03834]
[1756902722598,0.39304,111580.0,111570.0,0.91796325]
[1756902723390,0.15304,111580.0,111570.0,0.91796325]
[1756902723591,0.02304,111580.0,111570.0,0.57914]
[1756902723789,0.02304,111580.0,111570.0,0.76914]
[1756902724089,0.02304,111580.0,111570.0,1.10796325]
[1756902724493,0.02314,111590.0,111580.0,0.03834]
[1756902724697,0.02314,111590.0,111580.0,0.80796325]
[1756902724698,1.51046325,111590.0,111580.0,0.80796325]
[1756902725698,1.51146325,111590.0,111580.0,0.80796325]
[1756902726802,1.17264,111590.0,111580.0,0.80796325]
[1756902727001,1.51246325,111590.0,111580.0,0.80796325]
[1756902728991,1.53702468,111590.0,111580.0,0.80796325]
[1756902729197,1.53702468,111590.0,111580.0,0.46914]
[1756902729698,1.53702468,111590.0,111580.0,0.80796325]
[1756902729900,1.19820143,111590.0,111580.0,0.80796325]
[1756902730402,1.53702468,111590.0,111580.0,0.80796325]
[1756902730604,0.062,111590.0,111580.0,2.5448239]
[1756902730799,0.002,111590.0,111580.0,1.74722911]
[1756902731201,0.002,111590.0,111580.0,2.47631171]
[1756902732498,0.002,111590.0,111580.0,2.90473236]
[1756902732900,0.002,111590.0,111580.0,2.56590911]
[1756902733212,0.002,111590.0,111580.0,2.90473236]
[1756902733703,0.002,111590.0,111580.0,2.33924323]
[1756902735212,0.002,111590.0,111580.0,2.60304323]
[1756902736900,0.0001,111600.0,111590.0,0.0895894]
[1756902737114,0.02422,111610.0,111600.0,0.03706]
[1756902737308,0.02412,111610.0,111600.0,2.30100062]
[1756902738203,0.02412,111610.0,111600.0,2.30096062]
[1756902738404,0.02412,111610.0,111600.0,2.32287644]
[1756902738598,0.02412,111610.0,111600.0,1.31455644]
[1756902738809,0.02812,111610.0,111600.0,2.13283644]
[1756902739113,0.05263427,111610.0,111600.0,2.13283644]
[1756902739314,0.05264203,111610.0,111600.0,2.13283644]
[1756902739905,0.05264203,111610.0,111600.0,2.30283644]
[1756902740105,0.05564203,111610.0,111600.0,2.30279644]
[1756902747217,0.03152203,111610.0,111600.0,2.30279644]
[1756902752312,0.03152203,111610.0,111600.0,2.37473183]
[1756902754219,0.03152203,111610.0,111600.0,3.16529385]
[1756902756818,0.0001,111620.0,111610.0,0.1266333]
[1756902757017,0.0001,111630.0,111610.0,1.25841392]
[1756902757217,0.02471507,111630.0,111620.0,1.66688062]
[1756902757413,0.02461507,111630.0,111620.0,2.00688062]
[1756902757618,0.07307167,111640.0,111620.0,2.00688062]
[1756902757918,0.39883686,111640.0,111630.0,0.84884062]
[1756902758224,0.39883686,111640.0,111630.0,1.18884062]
[1756902758225,0.39873686,111640.0,111630.0,1.18884062]
[1756902758421,0.07461686,111640.0,111630.0,2.00684062]
[1756902759526,0.07461686,111640.0,111630.0,1.18884062]
[1756902759728,0.07461686,111640.0,111630.0,2.00684062]
[1756902760027,0.12297346,111640.0,111630.0,2.00684062]
[1756902760628,0.07461686,111640.0,111630.0,2.00684062]
[1756902760926,0.07461686,111640.0,111630.0,2.00880062]
[1756902761526,0.12297346,111640.0,111630.0,2.00880062]
[1756902761720,0.07297346,111640.0,111630.0,2.00880062]
[1756902761923,0.02461686,111640.0,111630.0,2.00880062]
[1756902763718,0.02461686,111640.0,111630.0,1.19084062]
[1756902764026,0.02461686,111640.0,111630.0,2.00876062]